bitfinex-derivatives/quotes_ETHF0:USTF0_20240930
["timestamp","ask_amount","ask_price","bid_price","bid_amount"]
[1727705740341,3.59072,2611.9,2611.3,1.6872]
[1727705740342,5.93732284,2611.9,2611.3,1.6872]
[1727705740543,2.02254,2611.8,2611.1,0.38303]
[1727705740749,3.2078,2611.6,2611.0,1.6563]
[1727705740936,3.2078,2611.6,2611.3,0.38299]
[1727705741133,5.93732284,2611.6,2611.3,0.38299]
[1727705741342,5.93732284,2611.6,2611.2,0.38301]
[1727705741543,0.38298,2611.5,2611.1,0.38303]
[1727705741740,0.38299,2611.4,2611.0,0.38304]
[1727705741937,3.11250284,2611.5,2611.1,0.38303]
[1727705742135,3.11250284,2611.5,2610.7,7.3028146]
[1727705742136,2.72952284,2611.5,2610.7,3.2078]
[1727705742340,2.72952284,2611.5,2609.3,0.3832]
[1727705742341,3.2078,2610.9,2610.5,4.15779061]
[1727705742546,0.38305,2611.1,2610.7,0.38309]
[1727705742744,2.72952284,2611.1,2610.4,3.2078]
[1727705742949,2.72952284,2611.1,2611.0,0.38305]
[1727705744838,6.5335,2611.8,2611.0,3.2078]
[1727705745038,9.26302284,2611.8,2611.0,3.2078]
[1727705745242,9.26302284,2611.8,2611.5,0.38296]
[1727705745445,9.26302284,2611.8,2611.1,3.1179]
[1727705745643,9.26302284,2611.8,2611.2,0.38302]
[1727705745836,9.26302284,2611.8,2611.1,6.3257]
[1727705745837,9.26302284,2611.8,2611.5,0.38296]
[1727705746246,13.09182284,2611.8,2611.5,0.38296]
[1727705747547,13.09182284,2611.8,2611.1,6.3257]
[1727705747851,13.09182284,2611.8,2611.5,0.38296]
[1727705747852,9.26302284,2611.8,2611.5,0.38296]
[1727705748146,9.26302284,2611.8,2611.6,0.38296]
[1727705748651,3.8288,2611.7,2611.6,0.38296]
[1727705749054,2.72952284,2611.7,2611.6,0.38296]
[1727705749745,3.2078,2612.0,2611.6,0.38296]
[1727705749746,3.2078,2612.0,2611.9,0.38292]
[1727705749952,2.72952284,2612.0,2611.9,0.38292]
[1727705750247,7.3798,2612.2,2611.7,2.49197]
[1727705750248,3.2078,2612.2,2611.7,2.49197]
[1727705750451,5.93732284,2612.2,2612.1,0.38289]
[1727705751147,5.93732284,2612.2,2611.1,3.2078]
[1727705751148,13.0358,2612.2,2611.1,3.2078]
[1727705751347,13.0358,2612.2,2610.5,7.60355]
[1727705751348,0.38296,2611.6,2611.4,0.38298]
[1727705751542,3.59077,2611.5,2611.2,0.38301]
[1727705751742,3.59077,2611.5,2610.9,2.49226]
[1727705751743,5.93733284,2611.5,2611.3,0.383]
[1727705752044,5.55436284,2611.5,2610.9,1.5346]
[1727705752251,5.55436284,2611.5,2611.4,0.38299]
[1727705752847,5.93734284,2611.5,2611.4,0.38299]
[1727705753048,5.55436284,2611.5,2611.4,0.38299]
[1727705753750,5.55436284,2611.5,2611.0,0.95763]
[1727705753944,5.55436284,2611.5,2611.4,0.38299]
[1727705754358,5.55436284,2611.5,2611.3,0.38299]
[1727705754656,0.38299,2611.4,2611.3,0.383]
[1727705754858,5.55436284,2611.5,2610.9,1.5346]
[1727705755047,5.55436284,2611.5,2611.4,0.38299]
[1727705755443,9.38396284,2611.5,2611.4,0.38299]
[1727705755847,2.34656284,2611.5,2611.4,0.38299]
[1727705756053,6.17616284,2611.5,2611.4,0.38299]
[1727705756352,2.34656284,2611.5,2611.4,0.38299]
[1727705757354,0.38294,2611.8,2611.6,0.38295]
[1727705757558,5.93729284,2611.9,2611.7,0.38294]
[1727705757761,5.93729284,2611.9,2611.3,0.95752]
[1727705758061,5.93729284,2611.9,2611.2,3.2078]
[1727705758062,5.55436284,2611.9,2611.2,3.2078]
[1727705758250,5.55436284,2611.9,2611.0,0.3305074]
[1727705758251,3.2078,2611.6,2611.5,0.38297]
[1727705758558,3.2078,2611.6,2611.3,4.17378054]
[1727705758858,5.93732284,2611.6,2611.3,0.383]
[1727705759060,9.76693284,2611.6,2611.2,0.38301]
[1727705759265,0.38297,2611.5,2611.2,0.38301]
[1727705759451,2.34656284,2611.5,2611.2,0.38301]
[1727705759756,2.34656284,2611.5,2611.3,0.383]
[1727705760450,2.34656284,2611.5,2611.0,4.10759484]
[1727705760853,2.34656284,2611.5,2611.4,0.38299]
[1727705761056,2.34656284,2611.5,2611.0,4.10759484]
[1727705761249,2.34656284,2611.5,2611.2,0.38301]
[1727705761456,2.72955284,2611.5,2611.1,0.38303]
[1727705761663,2.72955284,2611.5,2610.7,1.5964]
[1727705761664,3.2078,2611.3,2610.7,1.5964]
[1727705761952,2.34656284,2611.5,2610.6,0.38311]
[1727705761953,3.59085,2611.0,2610.6,0.38311]
[1727705762258,3.2078,2610.7,2610.2,1.6398]
[1727705762456,1.6595,2610.6,2610.3,0.38314]
[1727705762953,4.38917284,2610.6,2610.2,2.02296]
[1727705763151,4.38917284,2610.6,2610.1,1.671]
[1727705763348,4.38917284,2610.6,2610.2,0.38316]
[1727705763554,4.00606284,2610.6,2610.1,1.671]
[1727705763758,4.38917284,2610.6,2610.2,0.38316]
[1727705763956,4.00606284,2610.6,2610.3,0.38315]
[1727705764154,7.83646284,2610.6,2610.0,0.2]
[1727705764349,0.38313,2610.5,2610.1,0.38317]
[1727705764553,0.38313,2610.5,2610.0,0.2]
[1727705764554,0.38315,2610.3,2610.0,0.58319]
[1727705764752,4.00606284,2610.6,2610.0,0.2]
[1727705764954,0.38312,2610.5,2610.1,0.38317]
[1727705765152,4.00606284,2610.6,2610.3,0.38314]
[1727705765363,4.00606284,2610.6,2610.0,3.4078]
[1727705765560,4.00606284,2610.6,2610.4,0.38313]
[1727705765760,4.00606284,2610.6,2610.5,0.38312]
[1727705765761,2.34656284,2610.6,2610.5,0.38312]
[1727705766063,2.34656284,2610.6,2610.4,0.38313]
[1727705766263,2.34656284,2610.6,2610.0,4.36576]
[1727705766451,2.34656284,2610.6,2610.5,0.38312]
[1727705767159,1.6094,2611.0,2610.5,3.8304]
[1727705767461,2.34656284,2611.0,2610.6,1.5853]
[1727705767662,3.2078,2610.7,2610.5,0.38312]
[1727705767856,3.2078,2610.7,2610.4,0.38313]
[1727705768052,5.55436284,2610.7,2610.0,4.9931]
[1727705768350,5.55436284,2610.7,2610.5,0.38312]
[1727705769661,5.55436284,2610.7,2610.0,4.9931]
[1727705769866,5.55436284,2610.7,2610.5,0.38312]
[1727705770071,5.55436284,2610.7,2610.4,0.38312]
[1727705770363,5.55436284,2610.7,2610.0,4.9931]
[1727705770364,5.55436284,2610.7,2610.5,0.38312]
[1727705770566,5.93746284,2610.7,2610.4,0.38314]
[1727705770754,5.93746284,2610.7,2610.0,4.9931]
[1727705770755,5.55436284,2610.7,2610.0,4.9931]
[1727705770955,5.55436284,2610.7,2610.1,0.95796]
[1727705771153,2.34656284,2610.7,2610.6,0.38311]
[1727705771556,6.17696284,2610.7,2610.6,0.38311]
[1727705772368,9.38476284,2610.7,2610.5,0.38311]
[1727705772560,5.55436284,2610.7,2610.5,0.38311]
[1727705772867,5.55436284,2610.7,2610.0,4.9931]
[1727705773057,5.55436284,2610.7,2610.5,0.38311]
[1727705773469,5.55436284,2610.7,2610.1,0.95796]
[1727705773672,5.55436284,2610.7,2610.5,0.38311]
[1727705773871,5.55436284,2610.7,2610.1,0.95796]
[1727705774072,5.55436284,2610.7,2610.6,0.38311]
[1727705774271,5.55436284,2610.7,2610.5,0.38311]
[1727705774960,5.55436284,2610.7,2610.6,0.38311]
[1727705775159,2.34656284,2610.7,2610.6,0.38311]
[1727705775464,4.8059,2611.0,2610.8,0.38307]
[1727705775664,3.8304,2610.9,2610.6,0.54185676]
[1727705775860,0.38307,2610.9,2610.7,0.38308]
[1727705776060,2.72962284,2610.9,2610.7,0.38308]
[1727705776270,2.72962284,2610.9,2610.7,0.38309]
[1727705776469,2.34656284,2610.9,2610.7,0.38309]
[1727705776668,2.34656284,2610.9,2610.8,0.38308]
[1727705777069,6.17696284,2610.9,2610.8,0.38308]
[1727705777570,2.34656284,2610.9,2610.8,0.38308]
[1727705777885,2.34656284,2610.9,2610.8,4.13339173]
[1727705778172,2.34656284,2610.9,2610.8,0.92559173]
[1727705778571,4.18533377,2611.3,2611.2,0.38302]
[1727705778775,2.34656284,2611.3,2611.2,0.38302]
[1727705779472,6.17616284,2611.3,2611.2,0.38302]
[1727705779769,9.38396284,2611.3,2611.2,0.38302]
[1727705780175,5.55436284,2611.3,2611.2,0.38302]
[1727705781778,15.9774,2611.3,2610.6,1.5655]
[1727705781968,3.2078,2610.8,2610.7,0.38308]
[1727705782270,3.59088,2610.8,2610.7,0.38308]
[1727705782471,5.55436284,2610.8,2610.7,0.38308]
[1727705784575,2.34656284,2610.8,2610.7,0.38308]
[1727705787267,3.2078,2611.2,2611.1,0.38303]
[1727705787469,5.55436284,2611.2,2610.7,0.95772]
[1727705787773,5.55436284,2611.2,2611.0,0.38303]
[1727705787973,0.38303,2611.1,2610.9,0.38305]
[1727705788276,5.93739284,2611.2,2610.5,5.85168]
[1727705788469,5.55436284,2611.2,2610.5,5.85168]
[1727705788862,0.38304,2611.1,2610.5,5.85168]
[1727705789067,5.55436284,2611.2,2610.5,4.8939]
[1727705789068,8.49436284,2611.2,2610.5,4.8939]
[1727705789376,8.49436284,2611.2,2610.7,0.38309]
[1727705789377,3.59087,2610.9,2610.7,0.38309]
[1727705789776,0.38308,2610.8,2610.6,0.3831]
[1727705789967,0.38313,2610.5,2610.3,2.07874]
[1727705790175,0.38314,2610.4,2610.3,1.6956]
[1727705790472,0.38314,2610.4,2610.2,1.38386222]
[1727705790473,2.34656284,2610.5,2610.2,1.00071222]
[1727705790671,2.34656284,2610.5,2610.3,0.38311]
[1727705790871,3.33189707,2610.5,2610.3,0.38311]
[1727705791078,3.33189707,2610.5,2610.0,4.9757]
[1727705791273,3.33189707,2610.5,2610.4,0.3831]
[1727705791572,3.33189707,2610.5,2610.0,4.9757]
[1727705791875,0.98533423,2610.4,2610.0,4.9757]
[1727705792178,0.38313,2610.2,2610.0,1.7679]
[1727705792376,3.59093,2610.2,2610.0,1.7679]
[1727705792569,5.93749284,2610.2,2610.0,1.7679]
[1727705792766,2.34656284,2610.2,2610.0,1.7679]
[1727705792965,5.93750284,2610.2,2610.0,0.2]
[1727705793469,5.93749284,2610.2,2610.0,0.2]
[1727705794081,3.8312,2610.1,2610.0,0.2]
[1727705794577,6.17776284,2610.1,2610.0,0.58316]
[1727705794977,2.34656284,2610.1,2610.0,0.58316]
[1727705796068,0.98533423,2610.4,2610.0,4.0312]
[1727705796270,0.98533423,2610.6,2610.5,0.38308]
[1727705796468,2.34656284,2610.6,2610.5,0.38308]
[1727705797275,0.98533423,2610.9,2610.8,0.38304]
[1727705797476,2.34656284,2610.9,2610.8,0.38304]
[1727705797979,2.34656284,2610.9,2610.4,0.95774]
[1727705797980,2.34656284,2610.9,2610.7,0.38305]
[1727705798283,2.34656284,2610.9,2610.3,1.7074]
[1727705798673,2.34656284,2610.9,2610.8,0.38304]
[1727705798874,1.47800135,2611.2,2610.8,3.2078]
[1727705798875,0.98533423,2611.2,2610.8,3.2078]
[1727705799183,2.34656284,2611.2,2611.0,0.383]
[1727705799374,2.34656284,2611.2,2610.9,3.2351]
[1727705799678,0.98533423,2611.1,2610.9,3.2351]
[1727705799883,0.98533423,2611.1,2610.2,1.95851222]
[1727705799884,0.98533423,2611.1,2610.6,0.38306]
[1727705800073,0.98533423,2611.1,2610.1,5.84971222]
[1727705800074,0.38301,2611.0,2610.5,0.38308]
[1727705800274,0.38305,2610.8,2610.4,6.5903592]
[1727705800477,7.13313423,2610.7,2610.2,4.16466556]
[1727705800674,0.98533423,2610.5,2610.1,0.38314]
[1727705800874,3.33189707,2610.5,2610.1,0.38314]
[1727705801075,3.33189707,2610.5,2610.0,0.2]
[1727705801279,3.71498707,2610.5,2610.0,0.58315]
[1727705801681,4.19313423,2610.4,2610.0,0.2]
[1727705801981,6.18313423,2610.4,2610.0,0.2]
[1727705802184,8.14659707,2610.4,2610.0,0.2]
[1727705802379,0.38311,2610.3,2610.0,0.2]
[1727705802579,5.19965423,2610.3,2610.0,0.2]
[1727705802780,3.8312,2610.2,2610.0,0.2]
[1727705803187,7.16309707,2610.2,2610.0,0.2]
[1727705803484,3.8312,2610.1,2610.0,0.2]
[1727705803686,4.81653423,2610.1,2610.0,0.2]
[1727705803881,6.17776284,2610.1,2610.0,0.2]
[1727705804084,7.16309707,2610.1,2610.0,0.2]
[1727705804485,10.37089707,2610.1,2610.0,0.2]
[1727705804689,7.16309707,2610.1,2610.0,0.2]
[1727705804889,3.33189707,2610.1,2610.0,0.2]
[1727705805186,3.33189707,2610.1,2610.0,0.58316]
[1727705805781,3.33189707,2610.1,2610.0,0.2]
[1727705805998,2.34656284,2610.1,2610.0,0.2]
[1727705806187,3.33189707,2610.1,2610.0,0.2]
[1727705806484,2.34656284,2610.1,2610.0,0.2]
[1727705806784,3.33189707,2610.1,2610.0,0.58316]
[1727705808284,7.16309707,2610.1,2610.0,0.2]
[1727705808488,11.5547842,2610.1,2610.0,0.2]
[1727705808686,13.52545267,2610.1,2610.0,0.2]
[1727705808885,10.58545267,2610.1,2610.0,0.2]
[1727705809987,8.2316442,2610.1,2610.0,0.2]
[1727705810188,2.8515442,2610.1,2610.0,0.58316]
[1727705810493,2.34656284,2610.1,2610.0,0.58316]
[1727705810699,3.33132443,2610.1,2610.0,0.58316]
[1727705810892,3.57660889,2610.4,2610.0,0.58316]
[1727705810893,0.98476159,2610.2,2610.0,0.2]
[1727705811090,0.98476159,2610.3,2610.2,0.38313]
[1727705811394,1.29788596,2610.3,2610.2,0.38313]
[1727705811588,2.65968721,2610.3,2610.0,0.2]
[1727705811896,0.98474843,2610.2,2610.1,0.38314]
[1727705812100,3.71443127,2610.3,2610.0,0.58315]
[1727705812294,3.71443127,2610.3,2610.1,0.38314]
[1727705812590,3.33131127,2610.3,2610.0,0.2]
[1727705812792,3.33131127,2610.3,2610.1,0.38314]
[1727705812991,0.98474843,2610.2,2610.1,0.38314]
[1727705813195,0.98474843,2610.2,2610.0,0.2]
[1727705813399,3.2078,2610.1,2610.0,0.2]
[1727705813798,5.55436284,2610.1,2610.0,0.2]
[1727705814389,6.53911127,2610.1,2610.0,0.2]
[1727705814585,5.55436284,2610.1,2610.0,0.2]
[1727705815999,2.34656284,2610.1,2610.0,0.2]
[1727705817495,2.34656284,2610.1,2610.0,0.58316]
[1727705817797,3.37474843,2610.3,2610.1,0.38314]
[1727705818004,5.72131127,2610.3,2610.0,0.58314]
[1727705818397,5.72131127,2610.3,2610.0,0.58315]
[1727705818810,0.98474843,2610.2,2610.0,0.58315]
[1727705819199,3.33131127,2610.2,2610.0,0.58315]
[1727705819399,3.33131127,2610.2,2610.0,0.2]
[1727705819792,2.34656284,2610.2,2610.1,0.38314]
[1727705820201,0.98430216,2610.2,2610.1,0.38314]
[1727705820401,3.330865,2610.2,2610.0,0.2]
[1727705820594,0.98430216,2610.1,2610.0,0.2]
[1727705820799,1.86045594,2610.1,2610.0,0.2]
[1727705821008,9.80493736,2610.1,2610.0,0.2]
[1727705821206,9.42179736,2610.1,2610.0,0.2]
[1727705821508,9.23007878,2610.1,2610.0,0.2]
[1727705821708,9.42179752,2610.1,2610.0,0.58316]
[1727705821903,2.34656284,2610.1,2610.0,0.58316]
[1727705822204,3.33064101,2610.1,2610.0,0.58316]
[1727705822411,0.98407817,2610.2,2610.0,0.2]
[1727705822705,0.98407817,2610.1,2610.0,0.2]
[1727705822905,5.57278823,2610.1,2610.0,0.2]
[1727705823213,11.82063513,2610.1,2610.0,0.2]
[1727705823408,13.79034402,2610.1,2610.0,0.2]
[1727705823600,11.43749513,2610.1,2610.0,0.2]
[1727705823803,13.79034402,2610.1,2610.0,0.2]
[1727705824015,11.82059638,2610.1,2610.0,0.2]
[1727705824207,19.79030527,2610.1,2610.0,0.2]
[1727705824405,0.95795,2609.9,2609.3,1.6386]
[1727705824612,3.37355029,2609.6,2609.4,0.38323]
[1727705824805,3.37355029,2609.6,2609.3,1.6386]
[1727705825007,3.37355029,2609.6,2609.5,0.38323]
[1727705825008,4.73656284,2609.6,2609.5,0.38323]
[1727705825207,3.33015387,2609.6,2609.5,0.38323]
[1727705825413,2.34656284,2609.6,2609.5,0.38323]
[1727705825606,3.33015387,2609.6,2609.5,0.38323]
[1727705825803,0.98359103,2609.8,2609.7,0.3832]
[1727705826009,2.34656284,2609.8,2609.7,0.3832]
[1727705826410,0.98359103,2610.0,2609.7,13.0398]
[1727705826609,0.98359103,2610.1,2610.0,0.38316]
[1727705826921,1.47532544,2610.2,2610.0,0.38316]
[1727705826922,5.72015387,2610.2,2610.0,0.38316]
[1727705827114,5.72015387,2610.2,2609.8,1.5904]
[1727705827311,3.33015387,2610.2,2610.1,0.38314]
[1727705827617,2.34656284,2610.2,2610.1,0.38314]
[1727705827830,3.37359103,2610.4,2610.2,0.38313]
[1727705828120,0.98359103,2610.3,2610.1,0.38313]
[1727705828512,3.33015387,2610.3,2610.0,0.38315]
[1727705828709,3.33015387,2610.3,2610.0,0.38316]
[1727705828925,6.53795387,2610.3,2610.0,0.38316]
[1727705829120,3.37359103,2610.2,2609.9,1.5829]
[1727705829321,0.98359103,2610.5,2610.3,0.38311]
[1727705829515,0.98359103,2610.6,2610.4,3.1984]
[1727705829716,6.31272544,2610.8,2610.6,0.38307]
[1727705829717,0.98359103,2610.7,2610.6,0.38307]
[1727705829923,5.45148828,2610.8,2610.7,0.38305]
[1727705829924,0.98359103,2610.8,2610.7,0.38305]
[1727705830119,0.98359103,2610.9,2610.8,0.38304]
[1727705830319,6.53795387,2611.1,2610.8,0.38304]
[1727705830517,0.98359103,2611.0,2610.8,0.38304]
[1727705830722,8.92795387,2611.1,2610.8,0.38304]
[1727705830927,8.92795387,2611.1,2610.7,0.38305]
[1727705831122,8.92795387,2611.1,2610.8,0.38304]
[1727705831323,6.53795387,2611.1,2610.9,0.38302]
[1727705831519,6.53795387,2611.1,2610.8,0.38303]
[1727705831825,6.92095387,2611.1,2610.6,0.38305]
[1727705832130,0.98359103,2610.8,2610.5,0.38308]
[1727705832326,0.98359103,2610.8,2610.4,3.58149]
[1727705832529,0.98359103,2610.8,2610.4,3.1984]
[1727705832530,0.98359103,2610.7,2610.4,3.1984]
[1727705832730,2.63969103,2610.7,2610.4,3.1984]
[1727705833025,2.63969103,2610.7,2610.5,0.38308]
[1727705833026,4.98625387,2610.7,2610.5,0.38308]
[1727705833221,4.98625387,2610.7,2610.6,0.38307]
[1727705833424,0.98359103,2610.8,2610.5,0.38308]
[1727705833627,0.98359103,2610.8,2610.5,0.38307]
[1727705833628,3.33015387,2610.8,2610.5,0.38307]
[1727705833929,3.33015387,2610.8,2610.4,3.1984]
[1727705833930,0.98359103,2610.7,2610.4,3.1984]
[1727705834134,0.98359103,2610.7,2610.6,0.38307]
[1727705834627,0.98359103,2610.9,2610.8,0.38304]
[1727705835030,3.33015387,2610.9,2610.8,0.38304]
[1727705835333,2.34656284,2610.9,2610.8,0.38304]
[1727705835530,0.98359103,2611.0,2610.9,0.38302]
[1727705836233,0.98359103,2611.0,2610.7,0.38305]
[1727705836421,0.98359103,2611.1,2610.9,0.38302]
[1727705836629,3.33015387,2611.1,2610.9,0.38301]
[1727705836931,2.34656284,2611.1,2611.0,0.38301]
[1727705837135,2.34656284,2611.1,2610.6,0.95768]
[1727705837322,3.33129156,2611.1,2610.7,4.38991402]
[1727705837526,3.33129156,2611.1,2610.5,0.38308]
[1727705837527,0.98472872,2610.8,2610.5,0.38308]
[1727705837729,0.98472872,2610.7,2610.5,0.38307]
[1727705838026,0.38307,2610.6,2610.4,3.1984]
[1727705838227,1.36779872,2610.6,2610.4,3.1984]
[1727705838423,1.36779872,2610.6,2610.2,3.2078]
[1727705838424,0.38311,2610.4,2610.2,3.2078]
[1727705838635,0.98472872,2610.4,2609.8,3.3237]
[1727705838931,2.34656284,2610.4,2610.3,0.38311]
[1727705839124,0.98472872,2610.5,2610.4,0.38309]
[1727705839327,3.33129156,2610.5,2610.4,0.38309]
[1727705840336,2.34656284,2610.5,2610.4,0.38309]
[1727705840729,2.34656284,2610.5,2610.4,3.70689]
[1727705841427,2.34656284,2610.5,2610.4,3.3238]
[1727705841735,3.33129156,2610.5,2610.3,0.38311]
[1727705841935,3.33129156,2610.5,2609.8,2.66026]
[1727705841936,0.98426522,2610.4,2610.2,0.38312]
[1727705842337,3.3307603,2610.4,2609.9,3.3238]
[1727705842728,0.98419746,2610.3,2609.9,3.3238]
[1727705842934,0.98419746,2610.3,2610.1,0.38314]
[1727705843235,2.34656284,2610.3,2610.2,0.38313]
[1727705843932,0.98419746,2610.5,2610.3,0.38311]
[1727705844137,0.98419746,2610.5,2610.4,0.3831]
[1727705844338,2.34656284,2610.5,2610.4,0.3831]
[1727705844737,2.34656284,2610.5,2610.0,3.2078]
[1727705844929,3.3307603,2610.5,2610.3,0.3831]
[1727705845127,3.3307603,2610.5,2610.0,3.2078]
[1727705845332,0.98419746,2610.3,2610.2,0.38312]
[1727705845537,0.98419746,2610.3,2610.1,0.38313]
[1727705845736,3.3307603,2610.3,2610.2,0.38313]
[1727705846240,3.3307603,2610.3,2610.1,0.38314]
[1727705847330,3.3307603,2610.3,2609.9,3.3238]
[1727705847530,0.98419746,2610.2,2610.0,0.38315]
[1727705847932,3.3307603,2610.2,2609.9,3.3238]
[1727705848131,3.3307603,2610.2,2610.1,0.38314]
[1727705848335,3.3307603,2610.2,2610.0,0.38315]
[1727705848633,3.3307603,2610.2,2610.1,0.38314]
[1727705848834,3.3307603,2610.2,2610.0,0.38315]
[1727705849032,2.34656284,2610.2,2610.0,0.38315]
[1727705849648,3.3307603,2610.2,2609.5,0.95808]
[1727705849839,4.9089603,2610.2,2609.9,0.38316]
[1727705850045,0.98419746,2610.1,2609.9,0.38316]
[1727705850436,3.7139103,2610.1,2609.8,0.38318]
[1727705850636,6.5385603,2610.1,2609.9,0.38317]
[1727705850938,6.9217103,2610.1,2609.6,3.274]
[1727705851346,0.98419746,2610.0,2609.6,3.274]
[1727705851533,0.98419746,2610.0,2609.9,0.38317]
[1727705851738,3.3307603,2610.0,2609.9,0.38317]
[1727705852041,6.17776284,2610.0,2609.9,0.38317]
[1727705852342,6.17776284,2610.0,2609.6,7.43984]
[1727705852343,6.17776284,2610.0,2609.6,6.4818]
[1727705852548,3.3307603,2610.0,2609.8,0.38318]
[1727705853040,3.3307603,2610.0,2609.6,3.274]
[1727705853245,3.3307603,2610.0,2609.8,0.38318]
[1727705853436,3.3307603,2610.0,2609.9,0.38317]
[1727705853639,2.34656284,2610.0,2609.9,0.38317]
[1727705853842,2.34656284,2610.0,2609.7,3.34801]
[1727705853843,2.56239746,2610.2,2609.7,3.34801]
[1727705854037,2.56239746,2610.2,2610.1,0.38314]
[1727705854038,3.3307603,2610.2,2610.1,0.38314]
[1727705854342,2.34656284,2610.2,2610.1,0.38314]
[1727705854945,2.34656284,2610.2,2610.1,1.99464]
[1727705855947,0.98419746,2610.5,2610.1,5.82584]
[1727705856144,3.33092724,2610.5,2610.4,0.3831]
[1727705856344,5.8766644,2610.8,2610.4,2.39]
[1727705856549,4.03106284,2610.8,2610.7,0.38305]
[1727705856845,4.03106284,2610.8,2610.5,0.38307]
[1727705857148,7.40542724,2610.8,2610.5,0.38308]
[1727705857345,0.9843644,2610.7,2610.6,0.38307]
[1727705857744,2.34656284,2610.7,2610.6,0.38307]
[1727705857944,2.6688644,2610.8,2610.7,0.38305]
[1727705857945,0.9843644,2610.8,2610.7,0.38305]
[1727705858150,3.33092724,2610.8,2610.6,0.38306]
[1727705858653,2.34656284,2610.8,2610.4,4.27200746]
[1727705858858,2.34656284,2610.8,2610.6,0.38306]
[1727705859044,5.72092724,2610.8,2610.4,0.38309]
[1727705859545,5.72092724,2610.8,2610.3,3.2078]
[1727705859751,3.33092724,2610.8,2610.2,1.5636]
[1727705859945,2.34656284,2610.8,2610.7,0.38305]
[1727705861549,4.1921644,2611.2,2610.7,3.8304]
[1727705861747,6.53872724,2611.2,2611.1,0.38299]
[1727705862342,2.34656284,2611.2,2611.1,0.38299]
[1727705862853,2.34656284,2611.2,2611.0,0.383]
[1727705863149,2.34656284,2611.2,2611.1,0.38299]
[1727705864054,3.33092724,2611.2,2611.1,0.38299]
[1727705864552,3.33092724,2611.2,2610.6,4.0391]
[1727705864553,13.24928828,2611.2,2610.6,1.6491]
[1727705864748,0.98423757,2610.9,2610.6,1.6491]
[1727705865049,2.64883757,2610.8,2610.7,0.38305]
[1727705865551,4.01116284,2610.8,2610.7,0.38305]
[1727705866356,2.34656284,2610.8,2610.7,0.38305]
[1727705867048,2.64883757,2611.1,2610.6,1.6491]
[1727705867249,2.64883757,2611.1,2611.0,0.38301]
[1727705867250,4.99540041,2611.1,2611.0,0.38301]
[1727705867456,2.34656284,2611.1,2611.0,0.38301]
[1727705868746,0.98423757,2611.3,2611.0,6.2196]
[1727705868946,2.34656284,2611.3,2611.2,0.38298]
[1727705869550,0.98423757,2611.5,2611.1,1.7019]
[1727705869764,3.33080041,2611.5,2611.4,0.38295]
[1727705870251,3.33080041,2611.5,2611.1,1.7019]
[1727705870252,3.33080041,2611.5,2611.2,0.38298]
[1727705870450,0.98422798,2611.4,2611.2,0.38297]
[1727705870950,2.34656284,2611.4,2611.3,0.38297]
[1727705871149,2.34656284,2611.4,2611.1,1.7019]
[1727705871547,2.34656284,2611.4,2611.3,0.38297]
[1727705872162,2.34656284,2611.4,2611.1,1.7019]
[1727705872452,3.71375082,2611.4,2611.2,0.38297]
[1727705872651,3.33079082,2611.4,2611.2,0.38298]
[1727705872855,3.33079082,2611.4,2611.2,0.38297]
[1727705873046,3.33079082,2611.4,2611.1,1.7019]
[1727705873252,0.38298,2611.2,2611.0,0.383]
[1727705873453,2.63522798,2611.3,2610.9,1.6089]
[1727705873647,1.36722798,2611.1,2610.9,0.38302]
[1727705873856,1.5903,2611.0,2610.9,0.38302]
[1727705874252,3.93686284,2611.0,2610.9,0.38302]
[1727705874457,3.93686284,2611.0,2610.8,0.38303]
[1727705874661,4.92109082,2611.0,2610.8,0.38303]
[1727705874861,3.93686284,2611.0,2610.6,1.6005]
[1727705875155,5.30411082,2611.0,2610.7,0.38305]
[1727705875352,4.92109082,2611.0,2610.7,0.38305]
[1727705875553,5.30410082,2611.0,2610.7,0.38305]
[1727705875751,4.92109082,2611.0,2610.7,0.38305]
[1727705875954,4.92109082,2611.0,2610.8,0.38304]
[1727705876754,4.92109082,2611.0,2610.6,1.6005]
[1727705877048,4.92109082,2611.0,2610.8,0.38303]
[1727705877249,10.90191082,2611.0,2610.8,0.38304]
[1727705877454,0.98422798,2610.9,2610.7,0.38305]
[1727705877754,0.98422798,2610.9,2610.6,1.6005]
[1727705877956,3.33079082,2610.9,2610.7,0.38305]
[1727705878252,3.33079082,2610.9,2610.6,1.6005]
[1727705878558,3.33079082,2610.9,2610.8,0.38304]
[1727705878758,2.34656284,2610.9,2610.8,0.38304]
[1727705879063,3.33079082,2610.9,2610.8,0.38304]
[1727705879266,3.33079082,2610.9,2610.6,1.6005]
[1727705879455,3.33079082,2610.9,2610.7,0.38305]
[1727705880354,3.8304,2610.8,2610.2,3.2078]
[1727705880559,3.75729798,2610.6,2610.0,3.4205]
[1727705880760,0.98422798,2610.5,2610.0,3.80364]
[1727705880964,0.38311,2610.3,2610.0,3.4205]
[1727705881162,0.98422798,2610.3,2610.0,3.4205]
[1727705881353,0.98422798,2610.3,2610.0,3.80365]
[1727705881354,2.34656284,2610.3,2610.0,3.80365]
[1727705881666,2.34656284,2610.3,2610.2,0.38313]
[1727705881858,2.34656284,2610.3,2610.2,3.59093]
[1727705882461,0.98422798,2610.6,2610.2,15.429]
[1727705882666,1.96710059,2610.9,2610.8,0.38304]
[1727705882667,0.98422798,2610.9,2610.8,0.38304]
[1727705882858,2.34656284,2610.9,2610.8,0.38304]
[1727705883263,0.98422798,2611.1,2611.0,0.38301]
[1727705883461,1.47532544,2611.2,2611.1,0.38299]
[1727705883462,0.98422798,2611.2,2611.1,0.38299]
[1727705883657,0.98422798,2611.3,2611.2,0.38298]
[1727705884057,0.98422798,2611.4,2611.3,0.38297]
[1727705884258,0.98422798,2611.5,2611.3,1.6014]
[1727705884574,0.98422798,2611.5,2611.4,0.38295]
[1727705884575,3.33079082,2611.5,2611.4,0.38295]
[1727705884765,2.34656284,2611.5,2611.4,0.38295]
[1727705885763,4.19202798,2611.7,2611.5,0.38292]
[1727705885963,6.53859082,2611.7,2611.3,3.2119]
[1727705886158,6.53859082,2611.7,2611.6,0.38292]